fUST/lending_fUST_20240111
["ID","MTS","AMOUNT","RATE_DAILY","PERIOD"]
[311099306,1704904240821,-500.0,0.00027671,2]
[311099308,1704904240830,-500.0,0.00027671,2]
[311099310,1704904240840,-500.0,0.00027671,2]
[311099312,1704904240850,-500.0,0.00027671,2]
[311099314,1704904240859,-500.0,0.00027671,2]
[311099325,1704904240964,-500.0,0.00027671,2]
[311099327,1704904240974,-185.62363994,0.00027671,2]
[311099329,1704904240984,-500.0,0.00027671,2]
[311099332,1704904240993,-500.0,0.00027671,2]
[311099334,1704904241002,-837.61,0.00027671,2]
[311099335,1704904241012,-500.0,0.00027671,2]
[311099337,1704904241022,-500.0,0.00027671,2]
[311099339,1704904241031,-500.0,0.00027671,2]
[311099341,1704904241041,-448.30218637,0.00027671,2]
[311099343,1704904241051,-564.67628536,0.00027671,2]
[311099345,1704904241060,-500.0,0.00027671,2]
[311099347,1704904241070,-500.0,0.00027671,2]
[311099349,1704904241079,-500.0,0.00027671,2]
[311099351,1704904241089,-500.0,0.00027671,2]
[311099353,1704904241100,-831.41,0.00027671,2]
[311099355,1704904241110,-1314.27,0.00027671,2]
[311099357,1704904241120,-500.0,0.00027671,2]
[311099359,1704904241130,-500.0,0.00027671,2]
[311099361,1704904241140,-500.0,0.00027671,2]
[311099363,1704904241149,-500.0,0.00027671,2]
[311099365,1704904241158,-500.0,0.00027671,2]
[311099367,1704904241169,-500.0,0.00027671,2]
[311099369,1704904241179,-567.77,0.00027671,2]
[311099371,1704904241188,-552.74,0.00027671,2]
[311099373,1704904241197,-500.0,0.00027671,2]
[311099375,1704904241206,-500.0,0.00027671,2]
[311099377,1704904241215,-524.89574781,0.00027671,2]
[311099379,1704904241224,-500.0,0.00027671,2]
[311099380,1704904241234,-500.0,0.00027671,2]
[311099382,1704904241243,-500.0,0.00027671,2]
[311099384,1704904241252,-500.0,0.00027671,2]
[311099386,1704904241261,-500.0,0.00027671,2]
[311099388,1704904241270,-500.0,0.00027671,2]
[311099390,1704904241279,-529.27051169,0.00027671,2]
[311099392,1704904241288,-500.0,0.00027671,2]
[311099394,1704904241298,-3033.36,0.00027671,2]
[311099396,1704904241306,-500.0,0.00027671,2]
[311099398,1704904241317,-500.0,0.00027671,2]
[311099400,1704904241326,-500.0,0.00027671,2]
[311099402,1704904241335,-500.0,0.00027671,2]
[311099404,1704904241345,-500.0,0.00027671,2]
[311099406,1704904241355,-500.0,0.00027671,2]
[311099408,1704904241364,-500.0,0.00027671,2]
[311099410,1704904241374,-500.0,0.00027671,2]
[311099412,1704904241383,-500.0,0.00027671,2]
[311099414,1704904241392,-500.0,0.00027671,2]
[311099416,1704904241402,-161.74440105,0.00027671,2]
[311099418,1704904241412,-500.0,0.00027671,2]
[311099420,1704904241421,-500.0,0.00027671,2]
[311099422,1704904241430,-446.21810783,0.00027671,2]
[311099424,1704904241439,-500.0,0.00027671,2]
[311099426,1704904241448,-802.91,0.00027671,2]
[311099428,1704904241458,-933.32,0.00027671,2]
[311099430,1704904241467,-7419.42,0.00027671,2]
[311099432,1704904241476,-1150.58,0.00027671,2]
[311099434,1704904241486,-500.0,0.00027671,2]
[311099436,1704904241496,-2678.053756,0.00027699,4]
[311099438,1704904241505,-820.75393755,0.000277,2]
[311099440,1704904241515,-620.01721153,0.0002772,2]
[311099442,1704904241524,-302.38068407,0.00027727,4]
[311099444,1704904241533,-256.68594,0.00027727,4]
[311099446,1704904241543,-500.0,0.00027727,4]
[311099448,1704904241552,-500.0,0.00027727,4]
[311099450,1704904241561,-222.77753652,0.00027727,4]
[311099451,1704904241571,-500.0,0.00027727,4]
[311099453,1704904241580,-500.0,0.00027727,4]
[311099455,1704904241589,-514.28592865,0.00027727,4]
[311099457,1704904241601,-647.92767237,0.00027727,4]
[311099459,1704904241610,-500.0,0.00027727,4]
[311099461,1704904241619,-500.0,0.00027727,4]
[311099462,1704904241627,-51422.29605302,0.00027728,4]
[311099463,1704904241637,-500.0,0.00027944,2]
[311099464,1704904241646,-500.0,0.00027944,2]
[311099465,1704904241656,-598.24802421,0.00027944,2]
[311099466,1704904241665,-500.0,0.00027944,2]
[311099467,1704904241674,-500.0,0.00027944,2]
[311099468,1704904241684,-500.0,0.00027944,2]
[311099469,1704904241693,-500.0,0.00027944,2]
[311099470,1704904241702,-200.0,0.00027944,2]
[311099471,1704904241712,-500.0,0.00027944,2]
[311099472,1704904241721,-500.0,0.00027944,2]
[311099473,1704904241730,-573.80067345,0.00027944,2]
[311099474,1704904241739,-500.0,0.00027944,2]
[311099475,1704904241748,-500.0,0.00027944,2]
[311099476,1704904241757,-500.0,0.00027944,2]
[311099477,1704904241766,-154.29785145,0.00027944,2]
[311099478,1704904241775,-500.0,0.00027944,2]
[311099479,1704904241784,-500.0,0.00027945,2]
[311099480,1704904241793,-500.0,0.00027945,2]
[311099482,1704904241802,-500.0,0.00027945,2]
[311099484,1704904241811,-500.0,0.00027945,2]
[311099485,1704904241820,-500.0,0.00027945,2]
[311099487,1704904241828,-500.0,0.00027945,2]
[311099489,1704904241837,-342.7753344,0.00027945,2]
[311099491,1704904241848,-500.0,0.00027945,2]
[311099493,1704904241857,-500.0,0.00027945,2]
[311099495,1704904241866,-500.0,0.00027945,2]
[311099497,1704904241875,-837.61,0.00027945,2]
[311099499,1704904241884,-500.0,0.00027945,2]
[311099501,1704904241893,-500.0,0.00027945,2]
[311099503,1704904241902,-500.0,0.00027945,2]
[311099505,1704904241911,-500.0,0.00027945,2]
[311099507,1704904241920,-831.41,0.00027945,2]
[311099509,1704904241929,-1314.27,0.00027945,2]
[311099511,1704904241938,-500.0,0.00027945,2]
[311099513,1704904241950,-500.0,0.00027945,2]
[311099515,1704904241959,-500.0,0.00027945,2]
[311099517,1704904241968,-500.0,0.00027945,2]
[311099519,1704904241977,-500.0,0.00027945,2]
[311099521,1704904241986,-567.77,0.00027945,2]
[311099523,1704904241995,-552.74,0.00027945,2]
[311099525,1704904242005,-500.0,0.00027945,2]
[311099527,1704904242013,-500.0,0.00027945,2]
[311099529,1704904242025,-500.0,0.00027945,2]
[311099531,1704904242033,-500.0,0.00027945,2]
[311099533,1704904242042,-500.0,0.00027945,2]
[311099535,1704904242051,-500.0,0.00027945,2]
[311099537,1704904242060,-500.0,0.00027945,2]
[311099539,1704904242069,-3033.36,0.00027945,2]
[311099541,1704904242078,-500.0,0.00027945,2]
[311099543,1704904242087,-500.0,0.00027945,2]
[311099545,1704904242096,-500.0,0.00027945,2]
[311099547,1704904242105,-500.0,0.00027945,2]
[311099549,1704904242117,-500.0,0.00027945,2]
[311099551,1704904242127,-500.0,0.00027945,2]
[311099553,1704904242139,-500.0,0.00027945,2]
[311099556,1704904242151,-500.0,0.00027945,2]
[311099558,1704904242164,-500.0,0.00027945,2]
[311099560,1704904242177,-500.0,0.00027945,2]
[311099563,1704904242189,-500.0,0.00027945,2]
[311099565,1704904242201,-802.91,0.00027945,2]
[311099567,1704904242211,-933.32,0.00027945,2]
[311099570,1704904242221,-7419.42,0.00027945,2]
[311099573,1704904242231,-1150.58,0.00027945,2]
[311099577,1704904242242,-305.01426273,0.00028,2]
[311099579,1704904242253,-1921.58232461,0.00028216,2]
[311099581,1704904242264,-500.0,0.00028218,2]
[311099583,1704904242275,-188.56233448,0.00028218,2]
[311099586,1704904242286,-500.0,0.00028218,2]
[311099588,1704904242297,-632.4,0.00028219,2]
[311099590,1704904242309,-500.0,0.00028219,2]
[311099592,1704904242319,-500.0,0.00028219,2]
[311099594,1704904242330,-500.0,0.00028219,2]
[311099596,1704904242341,-500.0,0.00028219,2]
[311099598,1704904242353,-500.0,0.00028219,2]
[311099600,1704904242362,-500.0,0.00028219,2]
[311099602,1704904242373,-837.61,0.00028219,2]
[311099605,1704904242384,-500.0,0.00028219,2]
[311099607,1704904242396,-500.0,0.00028219,2]
[311099610,1704904242407,-500.0,0.00028219,2]
[311099613,1704904242417,-500.0,0.00028219,2]
[311099616,1704904242429,-831.41,0.00028219,2]
[311099620,1704904242441,-1314.27,0.00028219,2]
[311099623,1704904242451,-500.0,0.00028219,2]
[311099625,1704904242462,-500.0,0.00028219,2]
[311099627,1704904242476,-500.0,0.00028219,2]
[311099629,1704904242488,-500.0,0.00028219,2]
[311099633,1704904242501,-581.94597339,0.00028219,2]
[311099636,1704904242511,-567.77,0.00028219,2]
[311099639,1704904242521,-552.74,0.00028219,2]
[311099643,1704904242531,-500.0,0.00028219,2]
[311099646,1704904242542,-500.0,0.00028219,2]
[311099650,1704904242555,-500.0,0.00028219,2]
[311099652,1704904242566,-500.0,0.00028219,2]
[311099655,1704904242577,-500.0,0.00028219,2]
[311099657,1704904242588,-500.0,0.00028219,2]
[311099659,1704904242601,-3033.36,0.00028219,2]
[311099661,1704904242611,-500.0,0.00028219,2]
[311099663,1704904242621,-500.0,0.00028219,2]
[311099665,1704904242631,-500.0,0.00028219,2]
[311099667,1704904242642,-500.0,0.00028219,2]
[311099670,1704904242653,-500.0,0.00028219,2]
[311099672,1704904242665,-500.0,0.00028219,2]
[311099674,1704904242676,-500.0,0.00028219,2]
[311099676,1704904242687,-500.0,0.00028219,2]
[311099678,1704904242698,-565.54,0.00028219,2]
[311099680,1704904242710,-802.91,0.00028219,2]
[311099683,1704904242721,-933.32,0.00028219,2]
[311099685,1704904242733,-7419.42,0.00028219,2]
[311099687,1704904242745,-1150.58,0.00028219,2]
[311099689,1704904242756,-500.0,0.00028492,2]
[311099692,1704904242770,-500.0,0.00028493,2]
[311099694,1704904242780,-500.0,0.00028493,2]
[311099696,1704904242791,-500.0,0.00028493,2]
[311099698,1704904242801,-500.0,0.00028493,2]
[311099700,1704904242811,-500.0,0.00028493,2]
[311099702,1704904242821,-500.0,0.00028493,2]
[311099704,1704904242831,-837.61,0.00028493,2]
[311099706,1704904242842,-500.0,0.00028493,2]
[311099708,1704904242855,-500.0,0.00028493,2]
[311099710,1704904242866,-346.92,0.00028493,2]
[311099712,1704904242877,-500.0,0.00028493,2]
[311099715,1704904242887,-831.41,0.00028493,2]
[311099717,1704904242899,-1314.27,0.00028493,2]
[311099719,1704904242910,-500.0,0.00028493,2]
[311099721,1704904242920,-421.14,0.00028493,2]
[311099723,1704904242931,-500.0,0.00028493,2]
[311099725,1704904242941,-500.0,0.00028493,2]
[311099727,1704904242951,-567.77,0.00028493,2]
[311099729,1704904242962,-552.74,0.00028493,2]
[311099731,1704904242972,-500.0,0.00028493,2]
[311099733,1704904242984,-500.0,0.00028493,2]
[311099736,1704904242996,-500.0,0.00028493,2]
[311099738,1704904243006,-500.0,0.00028493,2]
[311099740,1704904243016,-389.96,0.00028493,2]
[311099742,1704904243026,-3033.36,0.00028493,2]
[311099744,1704904243037,-166.43,0.00028493,2]
[311099746,1704904243047,-500.0,0.00028493,2]
[311099748,1704904243058,-500.0,0.00028493,2]
[311099750,1704904243068,-500.0,0.00028493,2]
[311099752,1704904243078,-500.0,0.00028493,2]
[311099754,1704904243089,-500.0,0.00028493,2]
[311099757,1704904243101,-500.0,0.00028493,2]
[311099759,1704904243112,-500.0,0.00028493,2]
[311099761,1704904243123,-802.91,0.00028493,2]
[311099763,1704904243132,-933.32,0.00028493,2]
[311099765,1704904243145,-7419.42,0.00028493,2]
[311099767,1704904243155,-1150.58,0.00028493,2]
[311099769,1704904243165,-500.0,0.00028766,2]
[311099771,1704904243175,-185.38,0.00028767,2]
[311099773,1704904243185,-500.0,0.00028767,2]
[311099775,1704904243196,-500.0,0.00028767,2]
[311099777,1704904243206,-155.0,0.00028767,2]
[311099779,1704904243216,-500.0,0.00028767,2]
[311099782,1704904243226,-500.0,0.00028767,2]
[311099784,1704904243236,-500.0,0.00028767,2]
[311099786,1704904243246,-837.61,0.00028767,2]
[311099788,1704904243257,-500.0,0.00028767,2]
[311099790,1704904243267,-500.0,0.00028767,2]
[311099792,1704904243277,-500.0,0.00028767,2]
[311099794,1704904243288,-831.41,0.00028767,2]
[311099796,1704904243298,-1314.27,0.00028767,2]
[311099798,1704904243308,-500.0,0.00028767,2]
[311099800,1704904243319,-502.54,0.00028767,2]
[311099802,1704904243329,-500.0,0.00028767,2]
[311099805,1704904243340,-567.77,0.00028767,2]
[311099807,1704904243352,-552.74,0.00028767,2]
[311099809,1704904243362,-500.0,0.00028767,2]
[311099811,1704904243373,-500.0,0.00028767,2]
[311099813,1704904243383,-500.0,0.00028767,2]
[311099816,1704904243393,-500.0,0.00028767,2]
[311099818,1704904243403,-3033.36,0.00028767,2]
[311099820,1704904243414,-500.0,0.00028767,2]
[311099822,1704904243424,-500.0,0.00028767,2]
[311099825,1704904243434,-558.38,0.00028767,2]
[311099827,1704904243444,-552.8,0.00028767,2]
[311099829,1704904243454,-500.0,0.00028767,2]
[311099844,1704904243586,-500.0,0.00028767,2]
[311099846,1704904243598,-500.0,0.00028767,2]
[311099848,1704904243607,-802.91,0.00028767,2]
[311099850,1704904243616,-933.32,0.00028767,2]
[311099852,1704904243626,-7419.42,0.00028767,2]
[311099854,1704904243634,-1150.58,0.00028767,2]
[311099855,1704904243643,-208.74653403,0.00028778,2]
[311099857,1704904243652,-6514.80694864,0.00028858,2]
[311099859,1704904243661,-150.8642222,0.00029024,7]
[311099861,1704904243670,-167496.03170189,0.00029038,2]
[311099864,1704904243688,-20082.10527811,0.00029038,2]
[311099866,1704904243697,-787.43,0.00029039,2]
[311099868,1704904243707,-787.43,0.00029039,2]
[311099870,1704904243716,-787.43,0.00029039,2]
[311099872,1704904243724,-787.43,0.00029039,2]
[311099874,1704904243734,-787.43,0.00029039,2]
[311099876,1704904243743,-787.43,0.00029039,2]
[311099878,1704904243752,-787.43,0.00029039,2]
[311099880,1704904243760,-787.43,0.00029039,2]
[311099882,1704904243770,-787.43,0.00029039,2]
[311099884,1704904243779,-787.43,0.00029039,2]
[311099886,1704904243788,-171.62,0.0002904,2]
[311099888,1704904243797,-500.0,0.00029041,2]
[311099889,1704904243806,-549.04160124,0.00029041,2]
[311099891,1704904243815,-500.0,0.00029041,2]
[311099893,1704904243824,-500.0,0.00029041,2]
[311099895,1704904243833,-329.37006486,0.00029041,2]
[311099897,1704904243842,-837.61,0.00029041,2]
[311099899,1704904243853,-500.0,0.00029041,2]
[311099901,1704904243863,-564.88,0.00029041,2]
[311099903,1704904243872,-500.0,0.00029041,2]
[311099905,1704904243882,-831.41,0.00029041,2]
[311099907,1704904243891,-1314.27,0.00029041,2]
[311099909,1704904243900,-500.0,0.00029041,2]
[311099911,1704904243909,-500.0,0.00029041,2]
[311099913,1704904243918,-567.77,0.00029041,2]
[311099915,1704904243932,-552.74,0.00029041,2]
[311099917,1704904243941,-500.0,0.00029041,2]
[311099919,1704904243950,-575.6,0.00029041,2]
[311099921,1704904243959,-500.0,0.00029041,2]
[311099923,1704904243968,-500.0,0.00029041,2]
[311099925,1704904243978,-3033.36,0.00029041,2]
[311099927,1704904243987,-500.0,0.00029041,2]
[311099929,1704904243996,-500.0,0.00029041,2]
[311099931,1704904244005,-500.0,0.00029041,2]
[311099933,1704904244014,-500.0,0.00029041,2]
[311099935,1704904244024,-500.0,0.00029041,2]
[311099937,1704904244033,-802.91,0.00029041,2]
[311099939,1704904244042,-933.32,0.00029041,2]
[311099941,1704904244051,-7419.42,0.00029041,2]
[311099943,1704904244060,-1150.58,0.00029041,2]
[311099945,1704904244069,-620.00086058,0.00029106,2]
[311099947,1704904244078,-999.30048966,0.00029108,2]
[311099949,1704904244089,-500.0,0.00029315,2]
[311099951,1704904244100,-591.96,0.00029315,2]
[311099953,1704904244109,-500.0,0.00029315,2]
[311099955,1704904244118,-837.61,0.00029315,2]
[311099957,1704904244127,-500.0,0.00029315,2]
[311099959,1704904244136,-500.0,0.00029315,2]
[311099961,1704904244145,-831.41,0.00029315,2]
[311099963,1704904244154,-1314.27,0.00029315,2]
[311099965,1704904244163,-500.0,0.00029315,2]
[311099967,1704904244172,-500.0,0.00029315,2]
[311099969,1704904244182,-567.77,0.00029315,2]
[311099971,1704904244190,-552.74,0.00029315,2]
[311099972,1704904244199,-500.0,0.00029315,2]
[311099974,1704904244208,-500.0,0.00029315,2]
[311099976,1704904244217,-500.0,0.00029315,2]
[311099978,1704904244226,-3033.36,0.00029315,2]
[311099981,1704904244237,-500.0,0.00029315,2]
[311099983,1704904244247,-500.0,0.00029315,2]
[311099984,1704904244255,-500.0,0.00029315,2]
[311099986,1704904244265,-500.0,0.00029315,2]
[311099988,1704904244274,-500.0,0.00029315,2]
[311099990,1704904244283,-802.91,0.00029315,2]
[311099992,1704904244292,-933.32,0.00029315,2]
[311099994,1704904244301,-7419.42,0.00029315,2]
[311099996,1704904244310,-1150.58,0.00029315,2]
[311099998,1704904244319,-500.0,0.00029589,2]
[311100000,1704904244327,-500.0,0.00029589,2]
[311100002,1704904244337,-837.61,0.00029589,2]
[311100004,1704904244347,-500.0,0.00029589,2]
[311100007,1704904244357,-500.0,0.00029589,2]
[311100009,1704904244366,-831.41,0.00029589,2]
[311100011,1704904244376,-1314.27,0.00029589,2]
[311100013,1704904244385,-500.0,0.00029589,2]
[311100015,1704904244394,-500.0,0.00029589,2]
[311100016,1704904244403,-567.77,0.00029589,2]
[311100018,1704904244412,-552.74,0.00029589,2]
[311100020,1704904244421,-500.0,0.00029589,2]
[311100023,1704904244431,-500.0,0.00029589,2]
[311100024,1704904244440,-500.0,0.00029589,2]
[311100026,1704904244449,-3033.36,0.00029589,2]
[311100028,1704904244458,-500.0,0.00029589,2]
[311100030,1704904244467,-500.0,0.00029589,2]
[311100032,1704904244476,-500.0,0.00029589,2]
[311100034,1704904244486,-500.0,0.00029589,2]
[311100036,1704904244495,-500.0,0.00029589,2]
[311100038,1704904244505,-802.91,0.00029589,2]
[311100040,1704904244514,-933.32,0.00029589,2]
[311100042,1704904244523,-7419.42,0.00029589,2]
[311100044,1704904244532,-1150.58,0.00029589,2]
[311100046,1704904244541,-150.8642222,0.00029616,4]
[311100048,1704904244550,-500.0,0.00029863,2]
[311100050,1704904244558,-500.0,0.00029863,2]
[311100052,1704904244568,-837.61,0.00029863,2]
[311100054,1704904244577,-500.0,0.00029863,2]
[311100056,1704904244586,-500.0,0.00029863,2]
[311100058,1704904244595,-831.41,0.00029863,2]
[311100060,1704904244606,-1314.27,0.00029863,2]
[311100062,1704904244615,-500.0,0.00029863,2]
[311100064,1704904244624,-500.0,0.00029863,2]
[311100066,1704904244634,-567.77,0.00029863,2]
[311100068,1704904244643,-552.74,0.00029863,2]
[311100070,1704904244652,-500.0,0.00029863,2]
[311100072,1704904244662,-500.0,0.00029863,2]
[311100074,1704904244671,-155.38317733,0.00029863,2]
[311100076,1704904244680,-3033.36,0.00029863,2]
[311100078,1704904244689,-501.86717787,0.00029863,2]
[311100080,1704904244699,-500.0,0.00029863,2]
[311100082,1704904244708,-500.0,0.00029863,2]
[311100084,1704904244717,-152.26,0.00029863,2]
[311100086,1704904244726,-500.0,0.00029863,2]
[311100088,1704904244736,-802.91,0.00029863,2]
[311100090,1704904244745,-933.32,0.00029863,2]
[311100092,1704904244754,-7419.42,0.00029863,2]
[311100094,1704904244762,-1150.58,0.00029863,2]
[311100096,1704904244771,-208.74653403,0.00029986,2]
[311100097,1704904244780,-1022.39,0.0003,2]
[311100099,1704904244789,-639.65046808,0.0003,4]
[311100101,1704904244799,-154.87609912,0.0003,2]
[311100103,1704904244808,-399.65900583,0.0003,4]
[311100105,1704904244817,-236.52252731,0.0003,7]
[311100107,1704904244828,-463.38099934,0.0003,4]
[311100109,1704904244837,-243.77594457,0.0003,4]
[311100111,1704904244849,-15040.0244209,0.0003,4]
[311100113,1704904244859,-6973.85683356,0.0003,4]
[311100115,1704904244868,-150.0,0.0003,2]
[311100117,1704904244877,-686.6335406,0.0003,4]
[311100120,1704904244890,-1475.70472705,0.0003,2]
[311100122,1704904244899,-206.0,0.0003,2]
[311100124,1704904244908,-500.0,0.00030136,2]
[311100125,1704904244919,-150.0,0.00030136,2]
[311100127,1704904244929,-218.42,0.00030136,2]
[311100129,1704904244938,-837.61,0.00030136,2]
[311100131,1704904244947,-271.25,0.00030136,2]
[311100134,1704904244957,-500.0,0.00030136,2]
[311100135,1704904244966,-831.41,0.00030136,2]
[311100138,1704904244975,-1314.27,0.00030136,2]
[311100140,1704904244985,-500.0,0.00030136,2]
[311100142,1704904244994,-500.0,0.00030136,2]
[311100144,1704904245006,-567.77,0.00030136,2]
[311100146,1704904245015,-552.74,0.00030136,2]
[311100148,1704904245024,-500.0,0.00030136,2]
[311100150,1704904245036,-500.0,0.00030136,2]
[311100152,1704904245045,-3033.36,0.00030136,2]
[311100154,1704904245054,-500.0,0.00030136,2]
[311100156,1704904245063,-551.86,0.00030136,2]
[311100158,1704904245072,-500.0,0.00030136,2]
[311100160,1704904245081,-802.91,0.00030136,2]
[311100162,1704904245090,-933.32,0.00030136,2]
[311100164,1704904245101,-7419.42,0.00030136,2]
[311100166,1704904245110,-1150.58,0.00030136,2]
[311100168,1704904245119,-5000.0,0.00030137,2]
[311100170,1704904245128,-3180.8731799,0.00030137,2]
[311100172,1704904245137,-254.00672133,0.00030137,2]
[311100174,1704904245146,-150.8642222,0.00030221,2]
[311100176,1704904245155,-500.0,0.0003041,2]
[311100178,1704904245164,-837.61,0.0003041,2]
[311100180,1704904245173,-500.0,0.0003041,2]
[311100182,1704904245184,-831.41,0.0003041,2]
[311100184,1704904245194,-1314.27,0.0003041,2]
[311100186,1704904245203,-500.0,0.0003041,2]
[311100188,1704904245212,-500.0,0.0003041,2]
[311100190,1704904245221,-567.77,0.0003041,2]
[311100192,1704904245230,-552.74,0.0003041,2]
[311100194,1704904245239,-500.0,0.0003041,2]
[311100195,1704904245248,-500.0,0.0003041,2]
[311100197,1704904245258,-3033.36,0.0003041,2]
[311100199,1704904245268,-500.0,0.0003041,2]
[311100201,1704904245277,-500.0,0.0003041,2]
[311100203,1704904245286,-802.91,0.0003041,2]
[311100206,1704904245296,-933.32,0.0003041,2]
[311100207,1704904245305,-7419.42,0.0003041,2]
[311100209,1704904245314,-1150.58,0.0003041,2]
[311100211,1704904245323,-620.00004303,0.00030561,2]
[311100214,1704904245333,-500.0,0.00030684,2]
[311100215,1704904245342,-837.61,0.00030684,2]
[311100217,1704904245354,-500.0,0.00030684,2]
[311100219,1704904245364,-831.41,0.00030684,2]
[311100223,1704904245373,-1314.27,0.00030684,2]
[311100225,1704904245383,-500.0,0.00030684,2]
[311100227,1704904245393,-500.0,0.00030684,2]
[311100229,1704904245402,-567.77,0.00030684,2]
[311100230,1704904245412,-552.74,0.00030684,2]
[311100232,1704904245421,-500.0,0.00030684,2]
[311100234,1704904245430,-500.0,0.00030684,2]
[311100236,1704904245439,-3033.36,0.00030684,2]
[311100238,1704904245448,-500.0,0.00030684,2]
[311100240,1704904245457,-500.0,0.00030684,2]
[311100242,1704904245466,-802.91,0.00030684,2]
[311100244,1704904245475,-933.32,0.00030684,2]
[311100246,1704904245483,-7419.42,0.00030684,2]
[311100248,1704904245492,-1150.58,0.00030684,2]
[311100250,1704904245502,-241.88390419,0.00030887,2]
[311100252,1704904245511,-197.19890205,0.00030887,2]
[311100254,1704904245519,-6524.83935454,0.00030887,2]
[311100256,1704904245529,-2103.09372074,0.00030887,2]
[311100258,1704904245538,-700.0,0.00030887,2]
[311100260,1704904245548,-500.0,0.00030958,2]
[311100263,1704904245557,-837.61,0.00030958,2]
[311100265,1704904245567,-500.0,0.00030958,2]
[311100267,1704904245577,-831.41,0.00030958,2]
[311100269,1704904245586,-1314.27,0.00030958,2]
[311100271,1704904245596,-500.0,0.00030958,2]
[311100273,1704904245605,-500.0,0.00030958,2]
[311100275,1704904245615,-567.77,0.00030958,2]
[311100277,1704904245625,-552.74,0.00030958,2]
[311100279,1704904245634,-500.0,0.00030958,2]
[311100281,1704904245644,-500.0,0.00030958,2]
[311100283,1704904245653,-3033.36,0.00030958,2]
[311100285,1704904245663,-500.0,0.00030958,2]
[311100286,1704904245672,-500.0,0.00030958,2]
[311100287,1704904245682,-802.91,0.00030958,2]
[311100288,1704904245691,-933.32,0.00030958,2]
[311100289,1704904245701,-7419.42,0.00030958,2]
[311100290,1704904245710,-1150.58,0.00030958,2]
[311100291,1704904245720,-20585.91157609,0.00031,4]
[311100292,1704904245729,-208.74653403,0.00031193,2]
[311100293,1704904245738,-500.0,0.00031232,2]
[311100294,1704904245748,-837.61,0.00031232,2]
[311100295,1704904245757,-500.0,0.00031232,2]
[311100296,1704904245767,-831.41,0.00031232,2]
[311100297,1704904245777,-1314.27,0.00031232,2]
[311100298,1704904245786,-500.0,0.00031232,2]
[311100299,1704904245795,-500.0,0.00031232,2]
[311100300,1704904245805,-567.77,0.00031232,2]
[311100301,1704904245814,-552.74,0.00031232,2]
[311100302,1704904245823,-319.1477541,0.00031232,2]
[311100303,1704904245831,-500.0,0.00031232,2]
[311100305,1704904245841,-3033.36,0.00031232,2]
[311100307,1704904245850,-500.0,0.00031232,2]
[311100309,1704904245859,-500.0,0.00031232,2]
[311100311,1704904245869,-802.91,0.00031232,2]
[311100313,1704904245879,-933.32,0.00031232,2]
[311100315,1704904245888,-7419.42,0.00031232,2]
[311100318,1704904245898,-1150.58,0.00031232,2]
[311100319,1704904245907,-153.0,0.0003148,2]